{"text_format":"3","workbook":"xlsx","n_sheets":3,"sheets":["Лист1","Лист2","Лист3"],"not_rendered":{"images":1},"read":"whole","date_system":"1900"}

{"sheet":"Лист1","index":0,"n_rows":546,"n_cols":9,"rows_kept":546,"merged":[[0,0,0,8],[1,0,1,4],[1,6,1,8],[2,0,2,8],[3,2,3,6],[4,0,4,8],[5,0,5,8],[6,0,6,6],[7,4,7,6],[7,7,10,7],[7,8,17,8],[8,4,8,6],[9,4,9,6],[10,4,10,6],[11,4,11,6],[11,7,14,7],[12,4,12,6],[13,4,13,6],[14,4,14,6],[15,4,15,6],[16,4,16,6],[16,7,17,7],[17,4,17,6],[18,0,18,6],[19,2,19,6],[19,7,24,7],[19,8,38,8],[20,2,20,6],[21,2,21,6],[22,2,22,6],[23,2,23,6],[24,2,24,6],[25,2,25,6],[25,7,31,7],[26,2,26,6],[27,2,27,6],[28,2,28,6],[29,2,29,6],[30,2,30,6],[31,2,31,6],[32,2,32,6],[32,7,35,7],[33,2,33,6],[34,2,34,6],[35,2,35,6],[36,4,36,6],[37,2,37,6],[37,7,38,7],[38,4,38,6],[39,0,39,6],[40,2,40,6],[40,7,44,7],[40,8,52,8],[41,2,41,6],[42,2,42,6],[43,2,43,6],[44,4,44,6],[45,2,45,6],[45,7,47,7],[46,2,46,6],[47,2,47,6],[48,2,48,6],[48,7,50,7],[49,2,49,6],[50,4,50,6],[51,4,51,6],[52,4,52,6],[53,0,53,6],[54,4,54,6],[54,7,55,7],[54,8,64,8],[55,4,55,6],[56,4,56,6],[56,7,57,7],[57,4,57,6],[58,4,58,6],[58,7,62,7],[59,4,59,6],[60,4,60,6],[61,4,61,6],[62,4,62,6],[63,4,63,6],[64,4,64,6],[65,0,65,6],[66,4,66,6],[66,7,67,7],[66,8,69,8],[67,4,67,6],[68,4,68,6],[68,7,69,7],[69,4,69,6],[70,0,70,6],[71,4,71,6],[71,7,73,7],[71,8,74,8],[72,4,72,6],[73,4,73,6],[74,4,74,6],[75,0,75,6],[76,4,76,6],[76,7,77,7],[76,8,78,8],[77,4,77,6],[78,4,78,6],[79,0,79,6],[80,4,80,6],[80,7,81,7],[80,8,82,8],[81,4,81,6],[82,4,82,6],[83,0,83,7],[85,0,85,7],[86,1,86,7],[87,0,87,6],[88,4,88,6],[88,7,98,7],[88,8,101,8],[89,4,89,6],[90,4,90,6],[91,4,91,6],[92,4,92,6],[93,4,93,6],[94,4,94,6],[95,4,95,6],[96,4,96,6],[97,4,97,6],[98,4,98,6],[99,4,99,6],[99,7,101,7],[100,4,100,6],[101,4,101,6],[102,0,102,6],[103,4,103,6],[103,8,104,8],[104,4,104,6],[105,0,105,6],[106,4,106,6],[107,0,107,6],[108,4,108,6],[109,0,109,6],[110,4,110,6],[111,0,111,7],[113,0,113,7],[114,0,114,7],[115,0,115,6],[116,4,116,6],[116,7,117,7],[116,8,117,8],[117,4,117,6],[118,0,118,7],[120,0,120,7],[121,0,121,7],[122,0,122,6],[123,4,123,6],[123,7,124,7],[123,8,124,8],[124,4,124,6],[125,0,125,6],[126,4,126,6],[126,7,128,7],[126,8,128,8],[127,4,127,6],[128,4,128,6],[129,0,129,7],[131,0,131,7],[132,0,132,7],[133,0,133,6],[134,4,134,6],[134,7,135,7],[134,8,135,8],[135,4,135,6],[136,0,136,6],[137,4,137,6],[137,7,139,7],[137,8,139,8],[138,4,138,6],[139,4,139,6],[140,0,140,6],[141,4,141,6],[142,0,142,6],[143,4,143,6],[143,7,144,7],[143,8,144,8],[144,4,144,6],[145,0,145,7],[147,0,147,7],[148,0,148,7],[149,0,149,6],[150,4,150,6],[150,7,154,7],[150,8,154,8],[151,4,151,6],[152,4,152,6],[153,4,153,6],[154,4,154,6],[155,0,155,6],[156,4,156,6],[156,7,158,7],[156,8,158,8],[157,4,157,6],[158,4,158,6],[159,0,159,6],[160,4,160,6],[161,0,161,6],[162,4,162,6],[163,0,163,6],[164,4,164,6],[165,0,165,7],[167,0,167,7],[168,0,168,7],[169,0,169,6],[170,4,170,6],[170,7,171,7],[170,8,171,8],[171,4,171,6],[172,0,172,6],[173,4,173,6],[173,7,176,7],[173,8,179,8],[174,4,174,6],[175,4,175,6],[176,4,176,6],[177,4,177,6],[177,7,179,7],[178,4,178,6],[179,4,179,6],[180,0,180,6],[181,4,181,6],[181,7,184,7],[181,8,187,8],[182,4,182,6],[183,4,183,6],[184,4,184,6],[185,4,185,6],[185,7,187,7],[186,4,186,6],[187,4,187,6],[188,0,188,6],[189,4,189,6],[189,8,192,8],[190,4,190,6],[191,4,191,6],[191,7,192,7],[192,4,192,6],[193,0,193,6],[194,4,194,6],[194,7,195,7],[194,8,195,8],[195,4,195,6],[196,0,196,6],[197,4,197,6],[197,7,198,7],[197,8,199,8],[198,4,198,6],[199,4,199,6],[200,0,200,6],[201,4,201,6],[201,7,202,7],[201,8,202,8],[202,4,202,6],[203,0,203,7],[205,0,205,7],[206,0,206,7],[207,0,207,6],[208,4,208,6],[208,7,213,7],[208,8,213,8],[209,4,209,6],[210,4,210,6],[211,4,211,6],[212,4,212,6],[213,4,213,6],[214,0,214,6],[215,4,215,6],[216,0,216,6],[217,4,217,6],[218,0,218,6],[219,4,219,6],[220,0,220,7],[221,0,221,7],[222,0,222,7],[223,0,223,7],[224,4,224,6],[224,7,225,7],[225,4,225,6],[226,0,226,7],[228,0,228,7],[229,0,229,7],[230,0,230,7],[231,4,231,6],[232,0,232,7],[233,4,233,6],[234,0,234,7],[235,4,236,6],[235,7,236,7],[237,0,237,7],[238,4,239,6],[238,7,239,7],[240,0,240,7],[241,4,241,6],[242,0,242,7],[243,4,244,6],[243,7,244,7],[245,0,245,7],[246,4,246,6],[247,0,247,7],[249,0,249,7],[250,0,250,7],[251,0,251,7],[252,1,252,8],[253,4,269,6],[253,7,269,7],[270,0,270,6],[271,4,290,6],[271,7,290,7],[291,0,291,6],[292,4,311,6],[292,7,311,7],[312,0,312,6],[313,4,330,6],[313,7,330,7],[331,0,331,7],[332,0,332,7],[338,0,338,7],[339,0,339,6],[340,0,340,7],[341,4,362,6],[341,7,362,7],[363,0,363,6],[364,4,374,6],[364,7,374,7],[375,0,375,6],[376,4,391,6],[376,7,391,7],[392,0,392,6],[393,4,398,6],[393,7,398,7],[399,0,399,6],[400,4,414,6],[400,7,414,7],[415,0,415,7],[416,0,416,7],[418,0,418,8],[419,0,419,8],[420,2,420,6],[421,0,421,7],[422,4,429,6],[422,7,429,7],[422,8,429,8],[430,0,430,6],[431,4,431,6],[432,0,432,6],[433,4,433,6],[434,0,434,6],[435,4,435,6],[436,0,436,6],[437,4,437,6],[438,0,438,6],[439,4,439,6],[439,7,441,7],[439,8,442,8],[440,4,440,6],[441,4,441,6],[442,4,442,6],[443,0,443,7],[444,0,444,7],[445,0,445,7],[446,0,446,6],[447,4,447,6],[448,0,448,6],[449,4,449,6],[450,0,450,7],[452,0,452,7],[453,0,453,7],[455,0,455,8],[456,0,456,8],[457,2,457,6],[458,0,458,8],[459,0,459,7],[460,4,464,6],[460,7,464,7],[460,8,464,8],[465,0,465,8],[466,0,466,8],[467,0,467,7],[468,4,468,6],[469,0,469,8],[470,0,470,7],[471,4,474,6],[471,7,474,7],[471,8,474,8],[476,0,476,7],[477,0,477,7],[479,0,479,6],[480,1,480,4],[480,5,480,6],[481,1,481,4],[481,5,481,6],[482,1,482,4],[482,5,482,6],[483,1,483,4],[483,5,483,6],[484,1,484,4],[484,5,484,6],[485,1,485,4],[485,5,485,6],[486,1,486,4],[486,5,486,6],[487,1,487,4],[487,5,487,6],[488,1,488,4],[488,5,488,6],[489,1,489,4],[489,5,489,6],[490,1,490,4],[490,5,490,6],[491,1,491,4],[491,5,491,6],[492,0,492,4],[492,5,492,6],[495,4,495,8],[496,4,498,4],[496,5,496,7],[496,8,498,8],[497,6,497,7],[508,4,508,6],[509,4,509,6],[511,4,511,7],[512,4,514,4],[512,7,514,7],[517,0,517,3],[517,4,517,5],[517,7,517,8],[518,0,521,3],[518,4,519,5],[518,7,518,8],[519,7,519,8],[520,4,521,5],[520,7,520,8],[521,7,521,8],[522,0,523,3],[522,4,523,5],[522,7,522,8],[523,7,523,8],[524,0,524,6],[524,7,524,8],[527,4,527,5],[528,4,528,5],[530,4,530,5],[531,4,531,5],[532,4,532,5],[533,4,533,5],[534,4,534,5],[535,4,535,5],[536,4,536,5],[537,4,537,5],[538,4,538,5],[539,4,539,5],[540,4,540,5],[541,4,541,5],[543,0,543,7],[544,0,544,7],[545,0,545,7]]}
["МАОУ \"Гимназия №139-Центр образования\" Приволжского района г. Казани"]
["Список учащихся на 2020-2021 учебный год",{"$nulls":5},"Актуально на 11.12.2020"]
["ДООП"]
["№","ФИО","Преподаватель",{"$nulls":4},"Количество учащихся","Итого"]
["Восьмилетняя программа обучения"]
["Фортепиано"]
["1 год обучения"]
[1,"Гиниатуллина Малика Ильхамовна",null,null,"Хузина Д.А.",null,null,{"$f":"COUNT(A8:A11)","v":4},{"$f":"SUM(H8:H18)","v":11}]
[2,"Губайдуллина Зиля Шамилевна",null,null,"Хузина Д.А."]
[3,"Сорокова Надежда Алексеевна",null,null,"Хузина Д.А."]
[4,"Корчагина Елизавета Денисовна",null,null,"Хузина Д.А."]
[5,"Бикмуллина Эмилия Айратовна",null,null,"Биктагирова Л.Н.",null,null,{"$f":"COUNT(A12:A15)","v":4}]
[5,"Нуруллин Марат Рустемович",null,null,"Биктагирова Л.Н."]
[7,"Сафина Алиса Ильнуровна",null,null,"Биктагирова Л.Н."]
[8,"Файзуллина Рената Маратовна",null,null,"Биктагирова Л.Н."]
[9,"Жаббарова Сафина Маратовна",null,null,"Абульханова Г.Ш.",null,null,{"$f":"COUNT(A16)","v":1}]
[10,"Шарифуллина София Айратовна",null,null,"Лазарева Т.Е.",null,null,{"$f":"COUNT(A17:A18)","v":2}]
[11,"Егорова Дарья Сергеевна",null,null,"Лазарева Т.Е."]
["2 год обучения"]
[1,"Абульханова Айсылу Рифатовна","Хузина Д.А.",{"$nulls":4},{"$f":"COUNT(A20:A25)","v":6},{"$f":"SUM(H20:H39)","v":20}]
[2,"Булатова Амина ","Хузина Д.А."]
[3,"Камалов Ильдан Равилевич","Хузина Д.А."]
[4,"Муртазина Адэля Зуфаровна","Хузина Д.А."]
[5,"Рахматуллина Азалия Маратовна","Хузина Д.А."]
[6,"Халикова Амелия Руслановна","Хузина Д.А."]
[7,"Вахитова Элина Тахировна","Абульханова Г.Ш.",{"$nulls":4},{"$f":"COUNT(A26:A32)","v":7}]
[8,"Валиева Самина","Абульханова Г.Ш."]
[9,"Гайнетдинова Камила Алмазовна","Абульханова Г.Ш."]
[10,"Матвеева Александра","Абульханова Г.Ш."]
[11,"Фатыхов Амалия Алмазовна","Абульханова Г.Ш."]
[12,"Харасова Мадина Дамировна","Абульханова Г.Ш."]
[13,"Чурина Амалия Павловна","Абульханова Г.Ш."]
[14,"Валиуллин Альмир Альбертович","Биктагирова Л.Н.",{"$nulls":4},{"$f":"COUNT(A33:A36)","v":4}]
[15,"Хайдарова Малика","Биктагирова Л.Н."]
[16,"Камалдинов Салават","Биктагирова Л.Н."]
[17,"Павлов Михаил","Биктагирова Л.Н."]
[18,"Нурев Эмиль Фирдусович",null,null,"Кудрякова Е.А.",null,null,{"$f":"COUNT(A37)","v":1}]
[19,"Федина Лилия Эдуардовна","Лазарева Т.Е.",{"$nulls":4},{"$f":"COUNT(A38:A39)","v":2}]
[20,"Гимранова Даяна",null,null,"Лазарева Т.Е."]
["3 год обучения"]
[1,"Халус Зарина Александровна","Кудрякова Е.А.",{"$nulls":4},{"$f":"COUNT(A41:A45)","v":5},{"$f":"SUM(H41:H53)","v":13}]
[2,"Гилязова Зарина","Кудрякова Е.А."]
[3,"Музеев Эмиль Айдарович","Кудрякова Е.А."]
[4,"Хайрутдинова Султана Рустамовна","Кудрякова Е.А."]
[5,"Яколина Агния Павловна",null,null,"Мксалимова Д.Д."]
[6,"Хайрутдинов Арсений Евгеньевич","Абульханова Г.Ш.",{"$nulls":4},{"$f":"COUNT(A46:A48)","v":3}]
[7,"Трофимова Милана Владиславовна","Абульханова Г.Ш."]
[8,"Шакиров Амир Рустемович","Абульханова Г.Ш."]
[9,"Карягина Александра Матвеевна","Биктагирова Л.Н.",{"$nulls":4},{"$f":"COUNT(A49:A51)","v":3}]
[10,"Ахметшина Аделя","Биктагирова Л.Н."]
[11,"Мубаракшина Камила Фанисовна",null,null,"Биктагирова Л.Н."]
[12,"Мустафин Разиль Ранэлевич",null,null,"Лазарева Т.Е.",null,null,{"$f":"COUNT(A52)","v":1}]
[13,"Фефелов Дмитрий",null,null,"Хузина Д.А.",null,null,{"$f":"COUNT(A53)","v":1}]
["4 год обучения"]
[1,"Климанова Аделина Алексеевна",null,null,"Биктагирова Л.Н.",null,null,{"$f":"COUNT(A55:A56)","v":2},{"$f":"SUM(H55:H65)","v":11}]
[2,"Шавалиева Сабина Фаилевна",null,null,"Биктагирова Л.Н."]
[3,"Гурова Ксения Владимировна",null,null,"Лазарева Т.Е.",null,null,{"$f":"COUNT(A57:A58)","v":2}]
[4,"Кукарова Ксения Алексеевна",null,null,"Лазарева Т.Е."]
[5,"Абдуллина Азалия Рамилевна",null,null,"Хузина Д.А.",null,null,{"$f":"COUNT(A59:B63)","v":5}]
[6,"Николаев Михаил Леонидович",null,null,"Хузина Д.А."]
[7,"Сиразиева Таисия Николаевна",null,null,"Хузина Д.А."]
[8,"Хасанов Тимур Айратович",null,null,"Хузина Д.А."]
[9,"Чурашова Дарья Сергеевна",null,null,"Хузина Д.А."]
[10,"Аминова Камилла Рустамовна",null,null,"Абульханова Г.Ш.",null,null,{"$f":"COUNT(A64)","v":1}]
[11,"Терехов Евгений Иванович",null,null,"Кудрякова Е.А.",null,null,{"$f":"COUNT(A65)","v":1}]
["5 год обучения"]
[1,"Мустафина Азалия Ранэлевна",null,null,"Лазарева Т.Е.",null,null,{"$f":"COUNT(A67:A68)","v":2},{"$f":"SUM(H67:H70)","v":4}]
[2,"Галаган Мария Артёмовна",null,null,"Лазарева Т.Е."]
[3,"Мусин Карим Маратович",null,null,"Хузина Д.А.",null,null,{"$f":"COUNT(A69:A70)","v":2}]
[4,"Шайгарданова Наргиза Олимжановна",null,null,"Хузина Д.А."]
["6 год обучения"]
[1,"Кадырова Ралина Ильдаровна",null,null,"Биктагирова Л.Н.",null,null,{"$f":"COUNT(A72:A74)","v":3},{"$f":"SUM(H72:H75)","v":4}]
[2,"Гильмутдинов Ильсаф Ильсурович",null,null,"Биктагирова Л.Н."]
[3,"Камалдинов Ильсур Ильдарович",null,null,"Биктагирова Л.Н."]
[4,"Башарова Самира Тимуровна",null,null,"Абульханова Г.Ш.",null,null,{"$f":"COUNT(A75)","v":1}]
["7 год обучения"]
[1,"Закиева Самира Рамилевна",null,null,"Абульханова Г.Ш.",null,null,{"$f":"COUNT(A77:A78)","v":2},{"$f":"SUM(H77:H79)","v":3}]
[2,"Казакова Кира Олеговна",null,null,"Абульханова Г.Ш."]
[3,"Габдуллин Равиль Ренатович",null,null,"Биктагирова Л.Н.",null,null,{"$f":"COUNT(A79:A79)","v":1}]
["8 год обучения"]
[1,"Бабакова Милана Сергеевна",null,null,"Биктагирова Л.Н.",null,null,{"$f":"COUNT(A81:A82)","v":2},{"$f":"SUM(H81:H83)","v":3}]
[2,"Кадырова Карина Ильдаровна",null,null,"Биктагирова Л.Н."]
[3,"Ахмадуллина Саида Рустемовна",null,null,"Лазарева Т.Е.",null,null,{"$f":"COUNT(A83:A83)","v":1}]
["Всего обучающихся по направлению Фортепиано",{"$nulls":7},{"$f":"SUM(I8,I20,I41,I55,I67,I72,I77,I81)","v":69}]
[]
["Восьмилетняя программа обучения"]
[null,"Гитара"]
["1 год обучения"]
[1,"Богодвид Дарьяна",null,null,"Гиматдинова А.Р.",null,null,{"$f":"COUNT(A89:A99)","v":11},{"$f":"SUM(H89:H102)","v":14}]
[2,"Гиниатуллин Азамат Ильхамович",null,null,"Гиматдинова А.Р."]
[3,"Креманова Ангелина",null,null,"Гиматдинова А.Р."]
[4,"Миннеханов Амир Ленарович",null,null,"Гиматдинова А.Р."]
[5,"Никитин Егор Васильевич",null,null,"Гиматдинова А.Р."]
[6,"Трусов Захар Игоревич",null,null,"Гиматдинова А.Р."]
[7,"Зинченко Арина Александровна",null,null,"Гиматдинова А.Р."]
[8,"Кириллов Павел Васильевич",null,null,"Гиматдинова А.Р."]
[9,"Кириллов Никита Васильевич",null,null,"Гиматдинова А.Р."]
[10,"Поликарпова Елизавета Адреевна",null,null,"Гиматдинова А.Р."]
[11,"Шамова Диана Алексеевна",null,null,"Гиматдинова А.Р."]
[12,"Ахмеров Айман Риназович",null,null,"Глазунова Г.Б.",null,null,{"$f":"COUNT(A100:A102)","v":3}]
[13,"Зиновьева Василиса Алексеевна",null,null,"Глазунова Г.Б."]
[14,"Гайнутдинова Амалия Артуровна",null,null,"Глазунова Г.Б."]
["3 год обучения"]
[1,"Кручинин Егор Антонович",null,null,"Гараева Э.Т.",null,null,{"$f":"COUNT(A104)","v":1},{"$f":"COUNT(A104:A105)","v":2}]
[2,"Салаватуллина Милана Ленаровна",null,null,"Глазунова Г.Б.",null,null,1]
["5 год обучения"]
[1,"Новаковская Диана Владимировна",null,null,"Глазунова Г.Б.",null,null,1,{"$f":"SUM(H107)","v":1}]
["6 год обучения"]
[1,"Ахмадуллин Адель",null,null,"Глазунова Г.Б.",null,null,1,{"$f":"SUM(H109)","v":1}]
["7 год обучения"]
[1,"Маслов Руслан Анатольевич",null,null,"Глазунова Г.Б.",null,null,{"$f":"COUNT(A111)","v":1},{"$f":"SUM(H111)","v":1}]
["Всего обучающихся по направлению Гитары",{"$nulls":7},{"$f":"SUM(I89:I111)","v":19}]
[]
["Восьмилетняя программа обучения"]
["Домра"]
["5 год обучения"]
[1,"Гизатуллина Дина Айратовна",null,null,"Глазунова Г.Б.",null,null,{"$f":"COUNT(A117:A118)","v":2},{"$f":"SUM(H117)","v":2}]
[2,"Гизатуллина Элина Айратовна",null,null,"Глазунова Г.Б."]
["Всего обучающихся по направлению Домры",{"$nulls":7},{"$f":"SUM(I117)","v":2}]
[]
["Восьмилетняя программа обучения"]
["Аккордеон"]
["1 год обучения"]
[1,"Сахапов Раниф",null,null,"Гараева Э.Т.",null,null,{"$f":"COUNT(A124:A125)","v":2},{"$f":"SUM(H124)","v":2}]
[2,"Спасов Михаил",null,null,"Гараева Э.Т."]
["3 год обучения"]
[1,"Болонин Роман Егорович",null,null,"Гараева Э.Т.",null,null,{"$f":"COUNT(A127:A129)","v":3},{"$f":"SUM(H127)","v":3}]
[2,"Головнин Александр Алексеевич",null,null,"Гараева Э.Т."]
[3,"Селиверстов Артём Вячеславович",null,null,"Гараева Э.Т."]
["Всего обучающихся по направлению Аккордеон",{"$nulls":7},{"$f":"SUM(I124,I127)","v":5}]
[]
["Восьмилетняя программа обучения"]
["Баян"]
["2 год обучения"]
[1,"Айзатуллин Булат Альбертович",null,null,"Гараева Э.Т.",null,null,{"$f":"COUNT(A135:A136)","v":2},{"$f":"SUM(H135)","v":2}]
[2,"Гайнетдинов Булат Маратович",null,null,"Гараева Э.Т."]
["3 год обучения"]
[1,"Ахметзянов Искандер Маратович",null,null,"Гараева Э.Т.",null,null,{"$f":"COUNT(A138:A140)","v":3},{"$f":"SUM(H138)","v":3}]
[2,"Равильев Камиль Айдарович",null,null,"Гараева Э.Т."]
[3,"Хайбуллин Салават Фанилевич",null,null,"Гараева Э.Т."]
["4 год обучения"]
[1,"Рахимуллин Ильяс Зульфатович",null,null,"Гараева Э.Т.",null,null,{"$f":"COUNT(A142)","v":1},{"$f":"SUM(H142)","v":1}]
["8 год обучения"]
[1,"Гильманов Ильяс Ильнурович",null,null,"Гараева Э.Т.",null,null,{"$f":"COUNT(A144:A145)","v":2},{"$f":"SUM(H144)","v":2}]
[2,"Сибгатуллин Радмир Айратович",null,null,"Гараева Э.Т."]
["Всего обучающихся по направлению Баян",{"$nulls":7},{"$f":"SUM(I135:I145)","v":8}]
[]
["Восьмилетняя программа обучения"]
["Скрипка"]
["2 год обучения"]
[1,"Голикова Афина Геннадьевна",null,null,"Шадрова Н.А.",null,null,{"$f":"COUNT(A151:A155)","v":5},{"$f":"SUM(H151)","v":5}]
[2,"Кадырова Ясмина Аделевна",null,null,"Шадрова Н.А."]
[3,"Сиразиева Магдалина Николаевна",null,null,"Шадрова Н.А."]
[4,"Файзуллина Наиля Маратовна",null,null,"Шадрова Н.А."]
[5,"Ахтямова Лаура",null,null,"Шадрова Н.А."]
["3 год обучения"]
[1,"Арапова Ангелина Маратовна",null,null,"Шадрова Н.А.",null,null,{"$f":"COUNT(A157:A159)","v":3},{"$f":"SUM(H157)","v":3}]
[2,"Кириллова Александра Алексеевна",null,null,"Шадрова Н.А."]
[3,"Шафеева Изабель Руслановна",null,null,"Шадрова Н.А."]
["4 год обучения"]
[2,"Закирова Аделия Ильнуровна",null,null,"Шадрова Н.А.",null,null,1,{"$f":"SUM(H161)","v":1}]
["6 год обучения"]
[1,"Ибрагимова Аделина Намиковна",null,null,"Шадрова Н.А.",null,null,{"$f":"COUNT(A163)","v":1},{"$f":"SUM(H163)","v":1}]
["7 год обучения"]
[1,"Галеева Лия Эмилевна",null,null,"Шадрова Н.А.",null,null,{"$f":"COUNT(A165)","v":1},{"$f":"SUM(H165)","v":1}]
["Всего обучающихся по направлению Скрипка",{"$nulls":7},{"$f":"SUM(I151:I165)","v":11}]
[]
["Восьмилетняя программа обучения"]
["Вокал"]
["1 год обучения"]
[1,"Камартдинова Сильвия Салаватовна",null,null,"Овсепян Ю.А.",null,null,{"$f":"COUNT(A171:A172)","v":2},{"$f":"SUM(H171)","v":2}]
[2,"Корчагина Елизавета Денисовна",null,null,"Овсепян Ю.А."]
["2 год обучения"]
[1,"Турентинова Мария Глебовна",null,null,"Овсепян Ю.А.",null,null,{"$f":"COUNT(A174:A177)","v":4},{"$f":"SUM(H174:H180)","v":7}]
[2,"Лукманова Алина",null,null,"Овсепян Ю.А."]
[3,"Подузова Диана",null,null,"Овсепян Ю.А."]
[4,"Гилязова Зарина Талгатовна",null,null,"Овсепян Ю.А."]
[5,"Камалова Элина Альбертовна",null,null,"Габдинова А.А.",null,null,{"$f":"COUNT(A178:A180)","v":3}]
[6,"Булатова Амина",null,null,"Габдинова А.А."]
[7,"Калимуллина Камилла",null,null,"Габдинова А.А."]
["3 год обучения"]
[1,"Хайрутдинов Арсений Евгеньевич",null,null,"Габдинова А.А.",null,null,{"$f":"COUNT(A182:A185)","v":4},{"$f":"SUM(H182:H188)","v":7}]
[2,"Галяутдинова Айзиля Рафиковна",null,null,"Габдинова А.А."]
[3,"Салаватуллина Милана Ленаровна",null,null,"Габдинова А.А."]
[4,"Шамсутдинова Самира Ильсуровна",null,null,"Габдинова А.А."]
[5,"Смышляев Михаил Ильич",null,null,"Овсепян Ю.А.",null,null,{"$f":"COUNT(A186:A188)","v":3}]
[6,"Шафеева Изабель Руслановна",null,null,"Овсепян Ю.А."]
[7,"Корчагина Елизавета Денисовна",null,null,"Овсепян Ю.А."]
["4 год обучения"]
[1,"Евграфова Елизавета Павловна",null,null,"Овсепян Ю.А.",null,null,{"$f":"COUNT(A190:A190)","v":1},{"$f":"SUM(H190:H192)","v":4}]
[2,"Климанова Аделина Алексеевна",null,null,"Муратова Е.А.",null,null,1]
[3,"Тухватуллина Самира Ильнуровна",null,null,"Габдинова А.А.",null,null,{"$f":"COUNT(A192:A193)","v":2}]
[4,"Никитина Анастасия Дмитриевна",null,null,"Габдинова А.А."]
["5 год обучения"]
[1,"Сабитова зарина тимуровна",null,null,"Овсепян Ю.А.",null,null,{"$f":"COUNT(A195:A196)","v":2},{"$f":"SUM(H195)","v":2}]
[2,"Шайгарданова Наргиза Олимжановна",null,null,"Муратова Е.А."]
["7 год обучения"]
[1,"Ибрагимова Аделина Намиковна",null,null,"Муратова Е.А.",null,null,{"$f":"COUNT(A198:A199)","v":2},{"$f":"SUM(H198:H200)","v":3}]
[2,"Казакова Кира Олеговна",null,null,"Овсепян Ю.А."]
[3,"Наумова Диана",null,null,"Овсепян Ю.А.",null,null,{"$f":"COUNT(A200)","v":1}]
["8 год обучения"]
[1,"Бабакова Милана Сергеевна",null,null,"Муратова Е.А.",null,null,{"$f":"COUNT(A202:A203)","v":2},{"$f":"SUM(H202)","v":2}]
[2,"Набиль Хассан Инесса Мохаммедовна",null,null,"Овсепян Ю.А."]
["Всего обучающихся по направлению Вокал",{"$nulls":7},{"$f":"SUM(I171,I174,I182,I190,I195,I198,I202)","v":27}]
[]
["Восьмилетняя программа обучения"]
["Флейта"]
["1 год обучения"]
[1,"Галимов Карим Ильшатович",null,null,"Вишнякова Э.И.",null,null,{"$f":"COUNT(A209:A214)","v":6},{"$f":"SUM(H209)","v":6}]
[2,"Зинченко Арина Александрована",null,null,"Вишнякова Э.И."]
[3,"Стрикун Милана Дмитриевна",null,null,"Вишнякова Э.И."]
[4,"Кинцурашвили Дея Вахтанговна",null,null,"Вишнякова Э.И."]
[5,"Минсагирова Марьям Ильнуровна",null,null,"Вишнякова Э.И."]
[6,"Замилова Малика Мансуровна",null,null,"Вишнякова Э.И."]
["2 год обучения"]
[1,"Дымкин Илья Олегович",null,null,"Вишнякова Э.И.",null,null,{"$f":"COUNT(A216)","v":1},{"$f":"SUM(H216)","v":1}]
["3 год обучения"]
[1,"Дашиева Маргарита Чингисовна",null,null,"Вишнякова Э.И.",null,null,{"$f":"COUNT(A218)","v":1},{"$f":"SUM(H218)","v":1}]
["4 год обучения"]
[1,"Набиуллина Алина Фаритовна",null,null,"Вишнякова Э.И.",null,null,{"$f":"COUNT(A220)","v":1},{"$f":"SUM(H220)","v":1}]
["Всего обучающихся по направлению Флейта",{"$nulls":7},{"$f":"SUM(I209:I220)","v":9}]
["Восьмилетняя программа обучения"]
["Саксофон"]
["5 год обучения"]
[1,"Нуруллин Марат Рустемович",null,null,"Вишнякова Э.И.",null,null,{"$f":"COUNT(A225:A226)","v":2}]
[2,"Сабитов Арслан Рузалевич",null,null,"Вишнякова Э.И."]
["Всего обучающихся по направлению Саксофон",{"$nulls":7},{"$f":"SUM(H225)","v":2}]
[]
["Восьмилетняя программа обучения"]
["Специальный хор"]
["1 год обучения"]
[1,"Хайбуллина Самира Фанилевна",null,null,"Овсепян Ю.А.",null,null,{"$f":"COUNT(A232)","v":1}]
["2 год обучения"]
[1,"Гайнетдинов Булат Маратович",null,null,"Овсепян Ю.А.",null,null,{"$f":"COUNT(A234)","v":1}]
["3 год обучения"]
[1,"Гилязова Зарина Талгатовна",null,null,"Половникова С.А.",null,null,{"$f":"COUNT(A236:A237)","v":2}]
[2,"Мубаракшина Камила Фанисовна",{"$nulls":5},{"$f":"COUNT(A237)","v":1}]
["4 год обучения"]
[1,"Шавалиева Сабина Фаилевна",null,null,"Половникова С.А.",null,null,{"$f":"COUNT(A239:A240)","v":2}]
[2,"Кабаев Амир Марселевич",{"$nulls":5},{"$f":"COUNT(A240)","v":1}]
["5 год обучения"]
[1,"Прокофьева Арина Дмитриевна",null,null,"Половникова С.А.",null,null,{"$f":"COUNT(A242)","v":1}]
["6 год обучения"]
[1,"Еремеева Анабель Аленовна",null,null,"Половникова С.А.",null,null,{"$f":"COUNT(A244:A245)","v":2}]
[2,"Хаертдинов Камиль Шамилевич",{"$nulls":5},{"$f":"COUNT(A245)","v":1}]
["7 год обучения"]
[1,"Самвелян Карина Геворговна",null,null,"Половникова С.А.",null,null,{"$f":"COUNT(A247)","v":1}]
["Всего на отделении Специальный хор",{"$nulls":7},{"$f":"SUM(H232,H234,H236,H239,H242,H244,H247)","v":10}]
[]
["Филиал СОШ №17 в Кукушкино"]
["Пятилетняя программа обучения"]
["Хор"]
[null,"1 год обучения"]
[1,"Алиева Амина Равшановна",null,null,"Низамутдинов Ф.З.",null,null,{"$f":"COUNT(A254:A270)","v":17}]
[2,"Антонова Дарья Алексеевна"]
[3,"Богданова Мария Владимировна"]
[4,"Гайфуллин Богдан Радикович"]
[5,"Галиева Диляра Равилевна"]
[6,"Герасимов Матвей Сергеевич"]
[7,"Калмыков Максим Николаевич"]
[8,"Каримов Ильяс Фарходович"]
[9,"Каримов Ильяс Фарходович"]
[10,"Морозов Максим Сергеевич"]
[11,"Наджафов Мурад Наджафович"]
[12,"Овчинникова Любовь Владимировна"]
[13,"Сафаров Мухаммадсолех Зафарджонович"]
[14,"Тураева Арина Александровна"]
[15,"Тураева Полина Александровна"]
[16,"Хусаинова Амелия Сергеевна"]
[17,"Мустафин Риналь Диасович"]
["2 год обучения"]
[1,"Анищенко Диана                       ",null,null,"Низамутдинов Ф.З.",null,null,{"$f":"COUNT(A272:A291)","v":20}]
[2,"Виноходов Харитон                  "]
[3,"Ештокина Мария                       "]
[4,"Клочков Александр                 "]
[5,"Сафина Ангелина                     "]
[6,"Титкова Василиса                     "]
[7,"Шкондин Юрий                                                                                 "]
[8,"Ахмедов Артём                       "]
[9,"Владимиров Андрей               "]
[10,"Каримова Ясмина                   "]
[11,"Мышкова Ксения                  "]
[12,"Сафиуллин Имиль               "]
[13,"Хакимова Самира                "]
[14,"Багаутдинов Инсаф                                              "]
[15,"Гайфутдинов Данис                                       "]
[16,"Карпова Лияна                                                        "]
[17,"Макаров Александр                                              "]
[18,"Саломов Альмир                             "]
[19,"Сергеев Александр                              "]
[20,"Чурин Роман                                                    "]
["3 год обучения"]
[1,"Бабаев Илья Хайдарбекович                                     ",null,null,"Низамутдинов Ф.З.",null,null,{"$f":"COUNT(A293:A308)","v":16}]
[2,"Мустафин Риваль Диасович                          "]
[3,"Семахина София Владимировна                         "]
[4,"Фахрутдинов Динар Марселевич                   "]
[5,"Барсуков Кирилл Алесеевич                              "]
[6,"Комаров Кирилл Максимович                             "]
[7,"Наджафов Элмар Наджафович                               "]
[8,"Роот Роман Евгеньевич                                        "]
[9,"Семёнова Дарья                               "]
[10,"Шарафетдинова Азалия                  "]
[11,"Закирова Инзиля Ильясовна                  "]
[12,"Михляева Виктория                         "]
[13,"Башарова Самира                    "]
[14,"Сафонова Валерия Дмитриевна                      "]
[15,"Ткачёв Роман Дмитриевич                              "]
[16,"Тоджибоев Алихван Кишварович                      "]
[17,"Гаптрахманова Эмилия Аделевна"]
[18,"Ильин Глеб Александрович"]
[19,"Коннов Валерий Михайлович"]
[20,"Шабалина Злата Дмитриевна"]
["4 год обучения"]
[1,"Александров Александр Романович                   ",null,null,"Низамутдинов Ф.З.",null,null,{"$f":"COUNT(A314:A331)","v":18}]
[2,"Гайнутдинова Азалия Рамисовна                       "]
[3,"Зайцев Матвей Михайлович                                   "]
[4,"Котяшов Ярослав Андреевич                            "]
[5,"Мазитов Нияз Алмазович                                  "]
[6,"Фаттахов Ранэль Рамилевич                              "]
[7,"Балашов Егор Кириллович                                   "]
[8,"Гильфанова Ильдана Ильнаровна                       "]
[9,"Кукушкина Екатерина Павловна                              "]
[10,"Короева Ева Ильинична                                  "]
[11,"Турабоев Мирзофахридин Абдуваккосович                            "]
[12,"Ионов Ранель Сергеевич                               "]
[13,"Богатырёв Роман Дмитриевич                           "]
[14,"Догалова Асет Имрановна                             "]
[15,"Клещевников  Артур Олегович                 "]
[16,"Листкова Анастасия Александровна                           "]
[17,"Щербаков Михаил Денисович                      "]
[18,"Кондаков Святослав Викторович"]
["Всего обучающихся по хору",{"$nulls":7},{"$f":"SUM(H254,H272,H293,H314)","v":71}]
["Всего обучающихся в филиале",{"$nulls":7},{"$f":"SUM(I332)","v":71}]
[]
[]
[]
[]
[]
["Пятилетняя программа обучения"]
["1 год обучения "]
["Хореография"]
[1,"Авхадиева Аделина",null,null,"Сафин И.У.",null,null,{"$f":"COUNT(A342:A363)","v":22}]
[2,"Акманова Таисия"]
[3,"Афзалова Айгуль"]
[4,"Бачурина Мария"]
[5,"Бикмуллина Эмилия"]
[6,"Богодвид Дарьяна"]
[7,"Газизова Ралина"]
[8,"Гайнутдинова Амалия"]
[9,"Галямова Самина"]
[10,"Галямова Самира"]
[11,"Гильфанова Эмилия"]
[12,"Губайдуллина Зиля"]
[13,"Зинченко Арина"]
[14,"Курынцева Валерия"]
[15,"Мусина Диана"]
[16,"Первакова Ясмина"]
[17,"Сафина Алиса"]
[18,"Тимашева Кристина"]
[19,"Файзуллина Софья"]
[20,"Филиппова Пелагея"]
[21,"Хайбуллина Самира"]
[22,"Хабибуллина Амина"]
["2 год обучения "]
[1,"Акбирова Саида",null,null,"Сафин И.У.",null,null,{"$f":"COUNT(A365:A375)","v":11}]
[2,"Андреянова Ярослава"]
[3,"Ганибаева София"]
[4,"Ганибаева Алина"]
[5,"Замалеева Зарина"]
[6,"Карепова Полина"]
[7,"Кинцурашвили Дея"]
[8,"Матвеева Александра"]
[9,"Минсабирова Амина"]
[10,"Олтаржевская Анна"]
[11,"Чурина Амалия"]
["3 год обучения"]
[1,"Ахметшина Аделя",null,null,"Сафин И.У.",null,null,{"$f":"COUNT(A377:A392)","v":16}]
[2,"Гимадеева Диана"]
[3,"Зарипова Амина"]
[4,"Зиннурова Сюмбель"]
[5,"Ионова Айна"]
[6,"Киямова Алина"]
[7,"Липина Виктория"]
[8,"Марчина Амира"]
[9,"Никитина Анастасия"]
[10,"Павлова Софья"]
[11,"Рясная Анастасия"]
[12,"Семёнова Полина"]
[13,"Сиразиева Магдалина"]
[14,"Тимербулатова Эмилия"]
[15,"Хасанова Карина"]
[16,"Шайхутдинова Мадина"]
["4 год обучения"]
[1,"Нефедьева Елизавета",null,null,"Сафин И.У.",null,null,{"$f":"COUNT(A394:A399)","v":6}]
[2,"Дудкова Софья"]
[3,"Альмухаметова Алия"]
[4,"Ананичева Кира"]
[5,"Хайруллова Раяна"]
[6,"Шишкина Милана Радмировна"]
["5 год обучения"]
[1,"Гайфуллина Алина",null,null,"Сафин И.У.",null,null,{"$f":"COUNT(A401:A415)","v":15}]
[2,"Чурашова Дарья"]
[3,"Еремеева Анабель"]
[4,"Хасанова Азалия"]
[5,"СиразиеваТаисия"]
[6,"Нутфуллина Р."]
[7,"Ниденталь Мария"]
[8,"Захарова София"]
[9,"Сушенцова Аделина"]
[10,"Галимова Амина"]
[11,"Губайдуллина Азалия"]
[12,"Насырова Амина"]
[13,"Матвеева Виктория"]
[14,"Прокофьева Арина"]
[15,"Соловьёва Екатерина"]
["Всего обучающихся по направлению Хореография",{"$nulls":7},{"$f":"SUM(H342,H365,H377,H394,H401)","v":70}]
["Из них обучающихся по пятилетней программе обучения (ВНЕБЮДЖЕТ)-ХОРЕОГРАФИЯ",{"$nulls":7},{"$f":"SUM(H342,H365,H377)","v":49}]
[]
["Пятилетняя программа обучения"]
["Гитара"]
["№","ФИО","Преподаватель",{"$nulls":4},"Количество учащихся","Итого"]
["1 год обучения"]
[1,"Поликарпова Елизавета Андреевна",null,null,"Гиматдинова А.Р.",null,null,{"$f":"COUNT(A423:A430)","v":8},{"$f":"SUM(H423)","v":8}]
[2,"Гиниатуллина Ясмина Ильхамовна"]
[3,"Кириллов Павел"]
[4,"Быховцова Вера"]
[5,"Шамова Диана"]
[6,"Кириллов Никита"]
[7,"Минуллин Айнур"]
[8,"Прокофьева Арина Дмитриевна"]
["2 год обучения"]
[1,"Гафурова Элина Зуфаровна",null,null,"Глазунова Г.Б.",null,null,1,{"$f":"SUM(H432)","v":1}]
["3 год обучения"]
[1,"Сафин Булат Ренатович",null,null,"Гараева Э.Т.",null,null,1,{"$f":"SUM(H434)","v":1}]
["4 год обучения"]
[1,"Насыров Георгий Максимович",null,null,"Гараева Э.Т.",null,null,1,{"$f":"SUM(H436)","v":1}]
["4 год обучения"]
[1,"Чернявская Карина Ильсуровна",null,null,"Глазунова Г.Б.",null,null,1,{"$f":"SUM(H438)","v":1}]
["5 год обучения"]
[1,"Наумова Диана Вадимовна",null,null,"Глазунова Г.Б.",null,null,{"$f":"COUNT(A440:A442)","v":3},{"$f":"SUM(H440:H443)","v":4}]
[2,"Степанов Илья Вячеславович",null,null,"Глазунова Г.Б."]
[3,"Малыгин Дмитрий Андреевич",null,null,"Глазунова Г.Б."]
[4,"Родионова Ксения Алексеевна",null,null,"Гараева Э.Т.",null,null,1]
["Всего обучающихся по направлению Гитара",{"$nulls":7},{"$f":"SUM(I423,I432:I443)","v":16}]
["Пятилетняя программа обучения"]
["Баян"]
["3 год обучения"]
[1," Хасанова Азалия Азатовна",null,null,"Гараева Э.Т.",null,null,1]
["4 год обучения"]
[1,"Абзалов Камиль Раисович",null,null,"Гараева Э.Т.",null,null,1]
["Всего обучающихся по направлению Баян",{"$nulls":7},{"$f":"SUM(H448:H450)","v":2}]
[]
["Количество обучающихся по восьмилетней программе обучения",{"$nulls":7},{"$f":"SUM(I84,I112,I119,I130,I146,I166,I204,I221,I227,I248)","v":162}]
["Количество обучащихся по пятилетней программе обучения",{"$nulls":7},{"$f":"SUM(I333,I416,I444,I451)","v":159}]
[]
["ДПОП"]
["Пятилетняя программа обучения"]
["№","ФИО","Преподаватель",{"$nulls":4},"Количество учащихся","Итого"]
["Гитара"]
["1 год обучения"]
[1,"Гилязова Диана Альбертовна",null,null,"Глазунова Г.Б.",null,null,{"$f":"COUNT(A461:A465)","v":5},{"$f":"SUM(H461)","v":5}]
[2,"Дьячков Глеб Александрович"]
[3,"Фатхрахманов Камиль Айратович"]
[4,"Яруллин Карим Махмудович"]
[5,"Ионова Мария"]
["Восьмилетняя программа обучения"]
["Домра"]
["1 год обучения"]
[1,"Файзуллина Софья Линаровна",null,null,"Глазунова Г.Б.",null,null,{"$f":"COUNT(A469)","v":1},{"$f":"SUM(H469)","v":1}]
["Скрипка"]
["1 год обучения"]
[1,"Газизова Ралина Руслановна",null,null,"Шадрова Н.А.",null,null,{"$f":"COUNT(A472:A475)","v":4},{"$f":"SUM(H472)","v":4}]
[2,"Захарова Софья Андреевна"]
[3,"Кудряшова Амира Дмитриевна"]
[4,"Мухамадиева Лейсан Артуровна"]
[]
["Количество обучающихся по восьмилетней программе обучения",{"$nulls":7},{"$f":"SUM(I469,I472)","v":5}]
["Количество обучащихся по пятилетней программе обучения",{"$nulls":7},{"$f":"SUM(I461)","v":5}]
[]
["Количество обучающихся по направлениям образовательных программ"]
["№","Направление образовательных программ",{"$nulls":3},"Количество обучающихся"]
[1,"Фортепиано",{"$nulls":3},{"$f":"SUM(I84)","v":69}]
[2,"Гитара",{"$nulls":3},{"$f":"SUM(I112,I444)","v":35}]
[3,"Домра",{"$nulls":3},{"$f":"SUM(I119)","v":2}]
[4,"Аккордеон",{"$nulls":3},{"$f":"SUM(I130)","v":5}]
[5,"Баян",{"$nulls":3},{"$f":"SUM(I146,I451)","v":10}]
[6,"Скрипка",{"$nulls":3},{"$f":"SUM(I166)","v":11}]
[7,"Вокал",{"$nulls":3},{"$f":"SUM(I204)","v":27}]
[8,"Флейта",{"$nulls":3},{"$f":"SUM(I221)","v":9}]
[9,"Саксофон",{"$nulls":3},{"$f":"SUM(I227)","v":2}]
[10,"Специальный хор",{"$nulls":3},{"$f":"SUM(I248,I332)","v":81}]
[11,"Хореография",{"$nulls":3},{"$f":"SUM(I416)","v":70}]
["Всего обучающихся",{"$nulls":4},{"$f":"SUM(F482:G492)","v":321}]
[]
[]
[{"$nulls":4},"ДООП"]
[{"$nulls":4},"Класс","Количество обучающихся",null,null,"Всего"]
[{"$nulls":5},"8-я программа обучения","5-я программа обучения"]
[{"$nulls":5},"Муз. иск-во","Хореография","Муз. иск-во"]
[{"$nulls":4},1,{"$f":"SUM(I8,I89,I124,I171,I209,H232)","v":36},{"$f":"SUM(H342)","v":22},{"$f":"SUM(H254,I423)","v":25},{"$f":"SUM(F500:H500)","v":83}]
[{"$nulls":4},2,{"$f":"SUM(I20,I135,I151,I174,I216,H234)","v":36},{"$f":"SUM(H365)","v":11},{"$f":"SUM(H272,I432)","v":21},68]
[{"$nulls":4},3,{"$f":"SUM(I41,I104,I127,I138,I157,I182,I218,H236)","v":34},{"$f":"SUM(H377)","v":16},{"$f":"SUM(H293,I434,H448)","v":18},68]
[{"$nulls":4},4,{"$f":"SUM(I55,I142,I161,I190,I220,H239)","v":20},{"$f":"SUM(H394)","v":6},{"$f":"SUM(H314,I436,H450,I438)","v":21},47]
[{"$nulls":4},5,{"$f":"SUM(I67,I107,I117,I195,H225,H242)","v":12},{"$f":"SUM(H401)","v":15},{"$f":"SUM(I440)","v":4},31]
[{"$nulls":4},6,{"$f":"SUM(I72,I109,I163,H244)","v":8},0,0,8]
[{"$nulls":4},7,{"$f":"SUM(I77,I111,I165,I198)","v":8},0,0,8]
[{"$nulls":4},8,{"$f":"SUM(I81,I144,I202,H247)","v":8},0,0,8]
[{"$nulls":4},"Итого",{"$f":"SUM(F500:F507)","v":162},{"$f":"SUM(G500:G507)","v":70},{"$f":"SUM(H500:H507)","v":89},321]
[{"$nulls":4},"Музыкальное искусство",null,null,{"$f":"SUM(F508,H508)","v":251}]
[{"$nulls":4},"Хореография",null,null,{"$f":"SUM(G508)","v":70}]
[]
[{"$nulls":4},"ДПОП"]
[{"$nulls":4},"Класс","Количество обучающихся",null,"Всего"]
[{"$nulls":5},"8-я программа обучения","5-я программа обучения"]
[{"$nulls":5},"Муз. иск-во","Муз. иск-во"]
[{"$nulls":4},1,{"$f":"SUM(I477)","v":5},{"$f":"SUM(I478)","v":5},{"$f":"SUM(F516:G516)","v":10}]
[]
["Направление программы дополнительного образования",{"$nulls":3},"Срок обучения",null,"Класс","Количество обучающихся"]
["Музыкальное искусство",{"$nulls":3},5,null,"1-2",{"$f":"SUM(H500:H501)","v":46}]
[{"$nulls":6},"3-5",{"$f":"SUM(H502:H504)","v":43}]
[{"$nulls":4},8,null,"1-4",{"$f":"SUM(F500:F503)","v":126}]
[{"$nulls":6},"5-8",{"$f":"SUM(F504:F507)","v":36}]
["Хореографическое искусство",{"$nulls":3},5,null,"1-4",{"$f":"SUM(G500:G503)","v":55}]
[{"$nulls":6},"5-8",{"$f":"SUM(G504:G507)","v":15}]
["Итого",{"$nulls":6},{"$f":"SUM(H519:I524)","v":321}]
[]
[]
["Срок обучения","Наименование направленности программы дополнительного образования",null,null,"Специальность",null,"Класс","Численность классов (групп)(ед)","Обучающиеся (чел.)"]
[5,"Музыкальное искусство",null,null,"Народные инструменты"]
[]
[8,"Музыкальное искусство",null,null,"Народные инструменты"]
[8,"Музыкальное искусство",null,null,"Струнные инструменты"]
[8,"Музыкальное искусство",null,null,"Фортепиано"]
[5,"Музыкальное искусство",null,null,"Хоровое пение"]
[8,"Музыкальное искусство",null,null,"Хоровое пение"]
[8,"Музыкальное искусство",null,null,"Духовые и ударные инструменты"]
[5,"Хореографическое искусство",null,null,"Хореографическое искусство"]
[]
[]
[]
[]
[]
[]
["Всего обучающихся по ДООП",{"$nulls":7},{"$f":"SUM(I508)","v":321}]
["Всего обучающихся по ДПОП",{"$nulls":7},{"$f":"SUM(H516)","v":10}]
["Всего обучающихся в музыкальной школе МАОУ \"Гимназия №139-Центр образования\" Приволжского района г. Казани",{"$nulls":7},{"$f":"SUM(I544:I545)","v":331}]

{"sheet":"Лист2","index":1,"n_rows":26,"n_cols":8,"rows_kept":26,"merged":[[0,0,0,7],[1,0,1,7],[2,0,2,7],[3,0,3,6],[4,2,4,5],[5,4,5,5],[6,0,6,5],[7,4,7,5],[8,0,8,5],[9,4,9,5],[10,0,10,5],[11,4,11,5],[11,6,12,6],[12,4,12,5],[13,0,13,5],[14,4,14,5],[15,0,15,5],[16,4,16,5],[17,0,17,6],[18,0,18,6],[19,0,19,6],[20,0,20,5],[21,4,21,5],[22,0,22,5],[23,4,23,5],[24,0,24,6],[25,0,25,6]]}
["Список учащихся  на 2019-2020 учебный год"]
["Пятилетняя программа обучения"]
["Гитара"]
["1 год обучения"]
["№","ФИО","Преподаватель",{"$nulls":3},"Количество учащихся","Итого"]
[1,"Гафурова Элина Зуфаровна",null,null,"Глазунова Г.Б.",null,1]
["2 год обучения"]
[1,"Сафин Булат Ренатович",null,null,"Гараева Э.Т.",null,1]
["3 год обучения"]
[1,"Насыров Георгий Максимович",null,null,"Гараева Э.Т.",null,1]
["4 год обучения"]
[1,"Докучаев Данила",null,null,"Глазунова Г.Б.",null,2]
[2,"Махмудова Яна Станиславовна",null,null,"Глазунова Г.Б."]
["5 год обучения"]
[1,"Куприянова Анастасия Дмитриевна",null,null,"Гараева Э.Т.",null,1]
["6 год обучения"]
[1,"Родионова Ксения Алексеевна",null,null,"Гараева Э.Т.",null,1]
["Всего учащихся по направлению Гитара",{"$nulls":6},{"$f":"SUM(G6:G17)","v":7}]
["Пятилетняя программа обучения"]
["Баян"]
["2 год обучения"]
[1," Хасанова Азалия Азатовна",null,null,"Гараева Э.Т.",null,1]
["3 год обучения"]
[1,"Абзалов Камиль Раисович",null,null,"Гараева Э.Т.",null,1]
["Всего учащихся по направлению Баян",{"$nulls":6},{"$f":"SUM(G22:G24)","v":2}]
["Количество учащихся по пятилетней программе обучения",{"$nulls":6},{"$f":"SUM(H6:H25)","v":9}]

{"sheet":"Лист3","index":2,"n_rows":0,"n_cols":0,"rows_kept":0}